[Event "Live Chess"]
[Site "Chess.com"]
[Date "2011.01.26"]
[Round "-"]
[White "freemyggle"]
[Black "hipposcottimus"]
[Result "1-0"]
[CurrentPosition "r4rk1/p4ppp/3p4/2q1n3/Q2N2b1/4N3/PP4PP/R1B2R1K b - -"]
[Timezone "UTC"]
[ECO "A02"]
[ECOUrl "https://www.chess.com/openings/Birds-Opening-Froms-Gambit-2.fxe5-d6-3.exd6-Bxd6-4.Nf3"]
[UTCDate "2011.01.26"]
[UTCTime "20:12:58"]
[WhiteElo "1496"]
[BlackElo "1427"]
[TimeControl "420"]
[Termination "freemyggle won on time"]
[StartTime "20:12:58"]
[EndDate "2011.01.26"]
[EndTime "20:17:49"]
[Link "https://www.chess.com/game/live/91668624"]

1. f4 {[%clk 0:07:00]} 1... e5 {[%clk 0:07:00]} 2. fxe5 {[%clk 0:06:58.1]} 2... d6 {[%clk 0:06:59.4]} 3. exd6 {[%clk 0:06:56]} 3... Bxd6 {[%clk 0:06:58.2]} 4. Nf3 {[%clk 0:06:53.7]} 4... Bg4 {[%clk 0:06:55.4]} 5. e3 {[%clk 0:06:52.2]} 5... Ne7 {[%clk 0:06:32.3]} 6. d4 {[%clk 0:06:49.2]} 6... Ng6 {[%clk 0:06:30.8]} 7. c3 {[%clk 0:06:41.9]} 7... Nc6 {[%clk 0:06:05.3]} 8. Bb5 {[%clk 0:06:37.6]} 8... O-O {[%clk 0:06:03.7]} 9. Bxc6 {[%clk 0:06:33.8]} 9... bxc6 {[%clk 0:06:02.6]} 10. O-O {[%clk 0:06:31.7]} 10... Ne7 {[%clk 0:05:41.5]} 11. e4 {[%clk 0:06:30.3]} 11... Ng6 {[%clk 0:05:29.2]} 12. Qa4 {[%clk 0:06:16]} 12... c5 {[%clk 0:05:22.8]} 13. e5 {[%clk 0:06:12.3]} 13... cxd4 {[%clk 0:05:12.8]} 14. exd6 {[%clk 0:06:07.5]} 14... dxc3 {[%clk 0:05:11.4]} 15. Nxc3 {[%clk 0:06:05.2]} 15... cxd6 {[%clk 0:05:09.6]} 16. Nd4 {[%clk 0:05:53.3]} 16... Qb6 {[%clk 0:04:53.7]} 17. Kh1 {[%clk 0:05:42.4]} 17... Ne5 {[%clk 0:04:45.7]} 18. Nd5 {[%clk 0:05:20.2]} 18... Qc5 {[%clk 0:04:31.6]} 19. Ne3 {[%clk 0:04:46.9]} 1-0

[Event "Live Chess"]
[Site "Chess.com"]
[Date "2011.01.26"]
[Round "-"]
[White "drazen71"]
[Black "hipposcottimus"]
[Result "1-0"]
[CurrentPosition "8/6p1/5k2/7p/4K1p1/8/7P/8 b - -"]
[Timezone "UTC"]
[ECO "D00"]
[ECOUrl "https://www.chess.com/openings/Queens-Pawn-Opening-1...d5-2.e3-c5"]
[UTCDate "2011.01.26"]
[UTCTime "18:10:38"]
[WhiteElo "1630"]
[BlackElo "1636"]
[TimeControl "60"]
[Termination "drazen71 won on time"]
[StartTime "18:10:38"]
[EndDate "2011.01.26"]
[EndTime "18:12:57"]
[Link "https://www.chess.com/game/live/91633982"]

1. d4 {[%clk 0:01:00]} 1... d5 {[%clk 0:01:00]} 2. e3 {[%clk 0:00:59.6]} 2... c5 {[%clk 0:00:58.6]} 3. c4 {[%clk 0:00:59.2]} 3... cxd4 {[%clk 0:00:56.4]} 4. Qxd4 {[%clk 0:00:58.3]} 4... e6 {[%clk 0:00:50.7]} 5. cxd5 {[%clk 0:00:57]} 5... exd5 {[%clk 0:00:50.4]} 6. Bb5+ {[%clk 0:00:55.4]} 6... Nc6 {[%clk 0:00:47.6]} 7. Bxc6+ {[%clk 0:00:53.7]} 7... bxc6 {[%clk 0:00:47.3]} 8. Nc3 {[%clk 0:00:53.2]} 8... Bb7 {[%clk 0:00:46.9]} 9. Qe5+ {[%clk 0:00:52]} 9... Ne7 {[%clk 0:00:44.1]} 10. Nf3 {[%clk 0:00:48.5]} 10... Rc8 {[%clk 0:00:42.6]} 11. Ng5 {[%clk 0:00:47.3]} 11... Qc7 {[%clk 0:00:42]} 12. Qxc7 {[%clk 0:00:44.4]} 12... Rxc7 {[%clk 0:00:41.3]} 13. e4 {[%clk 0:00:41.9]} 13... Ng6 {[%clk 0:00:38.1]} 14. exd5 {[%clk 0:00:40.4]} 14... cxd5 {[%clk 0:00:36.9]} 15. Nb5 {[%clk 0:00:37.9]} 15... Bb4+ {[%clk 0:00:35.9]} 16. Bd2 {[%clk 0:00:35.7]} 16... Bxd2+ {[%clk 0:00:31.8]} 17. Kxd2 {[%clk 0:00:34.8]} 17... Rc5 {[%clk 0:00:30.4]} 18. Nxa7 {[%clk 0:00:33.9]} 18... O-O {[%clk 0:00:28.5]} 19. Rac1 {[%clk 0:00:32]} 19... Ra5 {[%clk 0:00:27.2]} 20. Nc6 {[%clk 0:00:28.6]} 20... Rxa2 {[%clk 0:00:25.5]} 21. Nb4 {[%clk 0:00:26.1]} 21... Rxb2+ {[%clk 0:00:24.5]} 22. Kc3 {[%clk 0:00:25.3]} 22... Rxf2 {[%clk 0:00:22]} 23. Nd3 {[%clk 0:00:23.4]} 23... Rxg2 {[%clk 0:00:20.9]} 24. Nf3 {[%clk 0:00:21.2]} 24... Ra2 {[%clk 0:00:14.8]} 25. Nfe5 {[%clk 0:00:19.6]} 25... Raa8 {[%clk 0:00:14.4]} 26. Nxg6 {[%clk 0:00:18.3]} 26... fxg6 {[%clk 0:00:13.2]} 27. Nc5 {[%clk 0:00:17.5]} 27... Rfc8 {[%clk 0:00:12.9]} 28. Kd4 {[%clk 0:00:15.9]} 28... Ra4+ {[%clk 0:00:11.5]} 29. Ke5 {[%clk 0:00:14.2]} 29... Rc4 {[%clk 0:00:09.3]} 30. Ne6 {[%clk 0:00:11.7]} 30... Rxc1 {[%clk 0:00:08.3]} 31. Rxc1 {[%clk 0:00:09.9]} 31... Rxc1 {[%clk 0:00:08]} 32. Nf4 {[%clk 0:00:08.6]} 32... Rd1 {[%clk 0:00:06.5]} 33. Nxd5 {[%clk 0:00:07.7]} 33... Rxd5+ {[%clk 0:00:04.9]} 34. Ke6 {[%clk 0:00:07.3]} 34... Rd6+ {[%clk 0:00:03.9]} 35. Ke7 {[%clk 0:00:06.6]} 35... Rd7+ {[%clk 0:00:02.3]} 36. Kxd7 {[%clk 0:00:05.7]} 36... g5 {[%clk 0:00:01.4]} 37. Kc7 {[%clk 0:00:05.3]} 37... h5 {[%clk 0:00:01.1]} 38. Kxb7 {[%clk 0:00:04.5]} 38... g4 {[%clk 0:00:00.8]} 39. Kc6 {[%clk 0:00:03.4]} 39... Kf7 {[%clk 0:00:00.5]} 40. Kd5 {[%clk 0:00:02]} 40... Kf6 {[%clk 0:00:00.3]} 41. Ke4 {[%clk 0:00:01.6]} 1-0

[Event "Live Chess"]
[Site "Chess.com"]
[Date "2011.01.26"]
[Round "-"]
[White "hipposcottimus"]
[Black "mfr1986"]
[Result "0-1"]
[CurrentPosition "1r2r1k1/5p1p/RP1Ppqp1/3p4/3P4/3B4/5PPP/3Q1RK1 w - -"]
[Timezone "UTC"]
[ECO "C00"]
[ECOUrl "https://www.chess.com/openings/Pirc-Defense-Small-Center-Defense"]
[UTCDate "2011.01.26"]
[UTCTime "18:08:14"]
[WhiteElo "1645"]
[BlackElo "1645"]
[TimeControl "60"]
[Termination "mfr1986 won on time"]
[StartTime "18:08:14"]
[EndDate "2011.01.26"]
[EndTime "18:09:54"]
[Link "https://www.chess.com/game/live/91633165"]

1. e4 {[%clk 0:01:00]} 1... e6 {[%clk 0:01:00]} 2. d4 {[%clk 0:00:57.6]} 2... d6 {[%clk 0:00:59.7]} 3. c4 {[%clk 0:00:55.6]} 3... c6 {[%clk 0:00:59.4]} 4. b4 {[%clk 0:00:53.9]} 4... Be7 {[%clk 0:00:59.1]} 5. Nc3 {[%clk 0:00:52.6]} 5... Nf6 {[%clk 0:00:58.8]} 6. Nf3 {[%clk 0:00:51]} 6... O-O {[%clk 0:00:57.5]} 7. Bd3 {[%clk 0:00:45.2]} 7... a6 {[%clk 0:00:57.1]} 8. a4 {[%clk 0:00:43.1]} 8... b5 {[%clk 0:00:56.7]} 9. O-O {[%clk 0:00:40.1]} 9... Bb7 {[%clk 0:00:56]} 10. c5 {[%clk 0:00:38.7]} 10... bxa4 {[%clk 0:00:54.1]} 11. Nxa4 {[%clk 0:00:33.6]} 11... Nbd7 {[%clk 0:00:53.4]} 12. Be3 {[%clk 0:00:25.4]} 12... Qe8 {[%clk 0:00:52.6]} 13. Rc1 {[%clk 0:00:25]} 13... Rb8 {[%clk 0:00:52]} 14. e5 {[%clk 0:00:23.6]} 14... Nd5 {[%clk 0:00:48.5]} 15. exd6 {[%clk 0:00:20.2]} 15... Bd8 {[%clk 0:00:47.6]} 16. Bg5 {[%clk 0:00:15.9]} 16... Bxg5 {[%clk 0:00:45.8]} 17. Nxg5 {[%clk 0:00:15.5]} 17... N7f6 {[%clk 0:00:45]} 18. Ne4 {[%clk 0:00:10.9]} 18... Qd7 {[%clk 0:00:44.6]} 19. Nb6 {[%clk 0:00:07.3]} 19... Qd8 {[%clk 0:00:42.1]} 20. Nxd5 {[%clk 0:00:06]} 20... cxd5 {[%clk 0:00:39.1]} 21. Nxf6+ {[%clk 0:00:05.2]} 21... Qxf6 {[%clk 0:00:38.4]} 22. c6 {[%clk 0:00:04.8]} 22... Bxc6 {[%clk 0:00:35.4]} 23. Rxc6 {[%clk 0:00:03.2]} 23... Rbd8 {[%clk 0:00:34.8]} 24. Rxa6 {[%clk 0:00:01.2]} 24... Rfe8 {[%clk 0:00:33.9]} 25. b5 {[%clk 0:00:00.5]} 25... g6 {[%clk 0:00:33.2]} 26. b6 {[%clk 0:00:00.3]} 26... Rb8 {[%clk 0:00:32.9]} 0-1

[Event "Live Chess"]
[Site "Chess.com"]
[Date "2011.01.26"]
[Round "-"]
[White "hipposcottimus"]
[Black "PakistaniChess"]
[Result "1-0"]
[CurrentPosition "5rk1/p6R/1p4p1/6N1/8/1B6/Pb4PP/5RK1 b - -"]
[Timezone "UTC"]
[ECO "B06"]
[ECOUrl "https://www.chess.com/openings/Modern-Defense-with-1-e4-2.d4-Bg7"]
[UTCDate "2011.01.26"]
[UTCTime "18:05:01"]
[WhiteElo "1653"]
[BlackElo "1401"]
[TimeControl "60"]
[Termination "hipposcottimus won on time"]
[StartTime "18:05:01"]
[EndDate "2011.01.26"]
[EndTime "18:07:01"]
[Link "https://www.chess.com/game/live/91632291"]

1. e4 {[%clk 0:01:00]} 1... g6 {[%clk 0:01:00]} 2. d4 {[%clk 0:00:58.7]} 2... Bg7 {[%clk 0:00:58.4]} 3. e5 {[%clk 0:00:58.4]} 3... e6 {[%clk 0:00:56.5]} 4. f4 {[%clk 0:00:58.1]} 4... Ne7 {[%clk 0:00:56]} 5. c4 {[%clk 0:00:57.3]} 5... b6 {[%clk 0:00:54.6]} 6. Nf3 {[%clk 0:00:56.9]} 6... c6 {[%clk 0:00:53]} 7. d5 {[%clk 0:00:56.4]} 7... cxd5 {[%clk 0:00:50.8]} 8. cxd5 {[%clk 0:00:56.1]} 8... exd5 {[%clk 0:00:48.9]} 9. Bb5 {[%clk 0:00:53.8]} 9... O-O {[%clk 0:00:45.1]} 10. O-O {[%clk 0:00:51.2]} 10... Qc7 {[%clk 0:00:42.3]} 11. Nc3 {[%clk 0:00:49.5]} 11... d6 {[%clk 0:00:40.3]} 12. Nxd5 {[%clk 0:00:44.4]} 12... Nxd5 {[%clk 0:00:39.1]} 13. Qxd5 {[%clk 0:00:41.5]} 13... dxe5 {[%clk 0:00:37.1]} 14. fxe5 {[%clk 0:00:40.7]} 14... Bb7 {[%clk 0:00:32.7]} 15. Qd6 {[%clk 0:00:32.9]} 15... Qxd6 {[%clk 0:00:29.8]} 16. exd6 {[%clk 0:00:32.6]} 16... Nd7 {[%clk 0:00:28.1]} 17. Bxd7 {[%clk 0:00:30.9]} 17... Rad8 {[%clk 0:00:26.8]} 18. Ba4 {[%clk 0:00:21.8]} 18... Rxd6 {[%clk 0:00:25.7]} 19. Bb3 {[%clk 0:00:21.5]} 19... Rfd8 {[%clk 0:00:23.3]} 20. Bf4 {[%clk 0:00:19.5]} 20... R6d7 {[%clk 0:00:21.2]} 21. Bg3 {[%clk 0:00:18]} 21... Rc7 {[%clk 0:00:19.1]} 22. Bh4 {[%clk 0:00:17.4]} 22... Rcc8 {[%clk 0:00:17.5]} 23. Bxd8 {[%clk 0:00:15.4]} 23... Rxd8 {[%clk 0:00:17.2]} 24. Rad1 {[%clk 0:00:14.9]} 24... Re8 {[%clk 0:00:15.8]} 25. Rd7 {[%clk 0:00:13.3]} 25... Kf8 {[%clk 0:00:15]} 26. Rxb7 {[%clk 0:00:12.4]} 26... Bxb2 {[%clk 0:00:14.5]} 27. Rxf7+ {[%clk 0:00:11.2]} 27... Kg8 {[%clk 0:00:06.6]} 28. Ng5 {[%clk 0:00:10.9]} 28... Rf8 {[%clk 0:00:04.8]} 29. Rxh7+ {[%clk 0:00:10.2]} 1-0

[Event "Live Chess"]
[Site "Chess.com"]
[Date "2011.01.26"]
[Round "-"]
[White "hipposcottimus"]
[Black "Khen77"]
[Result "1-0"]
[CurrentPosition "3r1k2/p3B2p/n3R3/N2p1r2/8/2N2P2/PPP3PP/R6K b - -"]
[Timezone "UTC"]
[ECO "C40"]
[ECOUrl "https://www.chess.com/openings/Kings-Pawn-Opening-Kings-Knight-Damiano-Defense"]
[UTCDate "2011.01.26"]
[UTCTime "18:02:05"]
[WhiteElo "1650"]
[BlackElo "1641"]
[TimeControl "60"]
[Termination "hipposcottimus won on time"]
[StartTime "18:02:05"]
[EndDate "2011.01.26"]
[EndTime "18:04:12"]
[Link "https://www.chess.com/game/live/91631523"]

1. e4 {[%clk 0:01:00]} 1... e5 {[%clk 0:01:00]} 2. Nf3 {[%clk 0:00:59.7]} 2... f6 {[%clk 0:00:59.6]} 3. Bc4 {[%clk 0:00:59.4]} 3... c6 {[%clk 0:00:59.2]} 4. d4 {[%clk 0:00:59.2]} 4... d5 {[%clk 0:00:58.8]} 5. Bb3 {[%clk 0:00:58.8]} 5... dxe4 {[%clk 0:00:57.5]} 6. Nfd2 {[%clk 0:00:58.5]} 6... f5 {[%clk 0:00:56]} 7. O-O {[%clk 0:00:55.9]} 7... Bd6 {[%clk 0:00:54.5]} 8. Re1 {[%clk 0:00:55.6]} 8... Bd7 {[%clk 0:00:51.7]} 9. f3 {[%clk 0:00:55.2]} 9... e3 {[%clk 0:00:46.8]} 10. Rxe3 {[%clk 0:00:53.7]} 10... f4 {[%clk 0:00:46.5]} 11. Re1 {[%clk 0:00:51.5]} 11... Nf6 {[%clk 0:00:43.2]} 12. Nc4 {[%clk 0:00:51.1]} 12... Kf7 {[%clk 0:00:39]} 13. dxe5 {[%clk 0:00:50.2]} 13... Bc5+ {[%clk 0:00:34]} 14. Kh1 {[%clk 0:00:47.1]} 14... Nd5 {[%clk 0:00:33]} 15. e6+ {[%clk 0:00:44.6]} 15... Bxe6 {[%clk 0:00:32.3]} 16. Ne5+ {[%clk 0:00:37.3]} 16... Kf6 {[%clk 0:00:28.5]} 17. Nd3 {[%clk 0:00:36]} 17... Re8 {[%clk 0:00:26.9]} 18. Nxc5 {[%clk 0:00:33.7]} 18... Na6 {[%clk 0:00:22.4]} 19. Nxb7 {[%clk 0:00:31.1]} 19... Qd7 {[%clk 0:00:18.8]} 20. Bxd5 {[%clk 0:00:27.6]} 20... cxd5 {[%clk 0:00:16.4]} 21. Na5 {[%clk 0:00:24.6]} 21... Rad8 {[%clk 0:00:14.6]} 22. Qd4+ {[%clk 0:00:22.2]} 22... Kf7 {[%clk 0:00:12.7]} 23. Bxf4 {[%clk 0:00:20.1]} 23... g5 {[%clk 0:00:10.5]} 24. Bxg5 {[%clk 0:00:18.6]} 24... Rg8 {[%clk 0:00:09.6]} 25. Qf6+ {[%clk 0:00:16]} 25... Ke8 {[%clk 0:00:07.4]} 26. Nc3 {[%clk 0:00:14.1]} 26... Rf8 {[%clk 0:00:05.3]} 27. Qe5 {[%clk 0:00:11.3]} 27... Rf5 {[%clk 0:00:02.2]} 28. Qxe6+ {[%clk 0:00:10.3]} 28... Qxe6 {[%clk 0:00:01.4]} 29. Rxe6+ {[%clk 0:00:10.1]} 29... Kf8 {[%clk 0:00:01]} 30. Be7+ {[%clk 0:00:07.7]} 1-0

[Event "Live Chess"]
[Site "Chess.com"]
[Date "2011.01.26"]
[Round "-"]
[White "hipposcottimus"]
[Black "temuchin1"]
[Result "0-1"]
[CurrentPosition "r1b4r/p4k1p/p1n2p1K/2b2pq1/8/8/8/8 w - -"]
[Timezone "UTC"]
[ECO "C00"]
[ECOUrl "https://www.chess.com/openings/French-Defense"]
[UTCDate "2011.01.26"]
[UTCTime "17:59:59"]
[WhiteElo "1642"]
[BlackElo "2230"]
[TimeControl "60"]
[Termination "temuchin1 won by checkmate"]
[StartTime "17:59:59"]
[EndDate "2011.01.26"]
[EndTime "18:01:47"]
[Link "https://www.chess.com/game/live/91630871"]

1. e4 {[%clk 0:01:00]} 1... e6 {[%clk 0:01:00]} 2. a4 {[%clk 0:00:59]} 2... c5 {[%clk 0:00:59.6]} 3. h4 {[%clk 0:00:57.7]} 3... Nc6 {[%clk 0:00:59.3]} 4. c4 {[%clk 0:00:57.1]} 4... Nf6 {[%clk 0:00:58.8]} 5. f4 {[%clk 0:00:55.1]} 5... d5 {[%clk 0:00:58.5]} 6. g4 {[%clk 0:00:50.4]} 6... dxe4 {[%clk 0:00:57.4]} 7. b4 {[%clk 0:00:49.6]} 7... cxb4 {[%clk 0:00:56.4]} 8. d4 {[%clk 0:00:48.8]} 8... exd3 {[%clk 0:00:55.4]} 9. Ne2 {[%clk 0:00:41.6]} 9... dxe2 {[%clk 0:00:53.5]} 10. Qxe2 {[%clk 0:00:38]} 10... Qd4 {[%clk 0:00:50.3]} 11. Nc3 {[%clk 0:00:36.9]} 11... Qxc3+ {[%clk 0:00:48.2]} 12. Kf2 {[%clk 0:00:31.8]} 12... Qxa1 {[%clk 0:00:45.1]} 13. Bb2 {[%clk 0:00:30.1]} 13... Qxa4 {[%clk 0:00:43]} 14. c5 {[%clk 0:00:27.3]} 14... Bxc5+ {[%clk 0:00:41.3]} 15. Kg2 {[%clk 0:00:25.4]} 15... Qb3 {[%clk 0:00:39.4]} 16. Rh3 {[%clk 0:00:22]} 16... Qd5+ {[%clk 0:00:37.8]} 17. Kh2 {[%clk 0:00:19.8]} 17... Qe4 {[%clk 0:00:36.5]} 18. Bxf6 {[%clk 0:00:13.8]} 18... Qxe2+ {[%clk 0:00:34.6]} 19. Bxe2 {[%clk 0:00:12.9]} 19... gxf6 {[%clk 0:00:34.2]} 20. Rc3 {[%clk 0:00:11.5]} 20... bxc3 {[%clk 0:00:32.5]} 21. Ba6 {[%clk 0:00:11.2]} 21... bxa6 {[%clk 0:00:30.6]} 22. f5 {[%clk 0:00:10.9]} 22... exf5 {[%clk 0:00:29.6]} 23. g5 {[%clk 0:00:10.3]} 23... fxg5 {[%clk 0:00:28.6]} 24. Kg3 {[%clk 0:00:08.9]} 24... c2 {[%clk 0:00:28.3]} 25. hxg5 {[%clk 0:00:07.4]} 25... c1=Q {[%clk 0:00:27.2]} 26. Kh4 {[%clk 0:00:06]} 26... f6 {[%clk 0:00:24.6]} 27. Kh5 {[%clk 0:00:05.7]} 27... Kf7 {[%clk 0:00:24]} 28. Kh6 {[%clk 0:00:04.1]} 28... Qxg5# {[%clk 0:00:21.9]} 0-1

[Event "Live Chess"]
[Site "Chess.com"]
[Date "2011.01.26"]
[Round "-"]
[White "XOIOX"]
[Black "hipposcottimus"]
[Result "1-0"]
[CurrentPosition "r4b1N/ppp1q3/2nkb2p/4p3/8/2P1B1Q1/PP3PPP/RN2KB1R w KQ -"]
[Timezone "UTC"]
[ECO "B02"]
[ECOUrl "https://www.chess.com/openings/Alekhines-Defense-Brooklyn-Variation-3.d4"]
[UTCDate "2011.01.26"]
[UTCTime "17:58:29"]
[WhiteElo "1200"]
[BlackElo "1642"]
[TimeControl "60"]
[Termination "XOIOX won by resignation"]
[StartTime "17:58:29"]
[EndDate "2011.01.26"]
[EndTime "17:59:33"]
[Link "https://www.chess.com/game/live/91630494"]

1. e4 {[%clk 0:01:00]} 1... Nf6 {[%clk 0:01:00]} 2. e5 {[%clk 0:00:58.4]} 2... Ng8 {[%clk 0:00:59.7]} 3. d4 {[%clk 0:00:57.9]} 3... e6 {[%clk 0:00:59.5]} 4. c3 {[%clk 0:00:57.4]} 4... d6 {[%clk 0:00:59.2]} 5. Nf3 {[%clk 0:00:54.4]} 5... dxe5 {[%clk 0:00:58.4]} 6. Nxe5 {[%clk 0:00:54]} 6... f6 {[%clk 0:00:56.8]} 7. Qh5+ {[%clk 0:00:52.3]} 7... g6 {[%clk 0:00:55]} 8. Nxg6 {[%clk 0:00:51.9]} 8... Nc6 {[%clk 0:00:40.7]} 9. Nxh8+ {[%clk 0:00:50.1]} 9... Ke7 {[%clk 0:00:40.5]} 10. Qf7+ {[%clk 0:00:47.9]} 10... Kd6 {[%clk 0:00:39.4]} 11. Qxg8 {[%clk 0:00:47]} 11... h6 {[%clk 0:00:35.3]} 12. Bf4+ {[%clk 0:00:45.4]} 12... e5 {[%clk 0:00:34.1]} 13. dxe5+ {[%clk 0:00:43.8]} 13... fxe5 {[%clk 0:00:33.4]} 14. Be3 {[%clk 0:00:39.7]} 14... Be6 {[%clk 0:00:32.6]} 15. Qg3 {[%clk 0:00:37.7]} 15... Qe7 {[%clk 0:00:26.1]} 1-0

[Event "Live Chess"]
[Site "Chess.com"]
[Date "2011.01.26"]
[Round "-"]
[White "hipposcottimus"]
[Black "XOIOX"]
[Result "0-1"]
[CurrentPosition "8/p2rbk1K/8/6p1/7p/8/1p6/8 w - -"]
[Timezone "UTC"]
[ECO "C21"]
[ECOUrl "https://www.chess.com/openings/Center-Game-Accepted-Ross-Gambit"]
[UTCDate "2011.01.26"]
[UTCTime "17:55:15"]
[WhiteElo "1642"]
[BlackElo "1200"]
[TimeControl "60"]
[Termination "XOIOX won on time"]
[StartTime "17:55:15"]
[EndDate "2011.01.26"]
[EndTime "17:57:34"]
[Link "https://www.chess.com/game/live/91629418"]

1. e4 {[%clk 0:01:00]} 1... e5 {[%clk 0:01:00]} 2. d4 {[%clk 0:00:59]} 2... exd4 {[%clk 0:00:57.6]} 3. Bd3 {[%clk 0:00:58.3]} 3... d6 {[%clk 0:00:56.8]} 4. c3 {[%clk 0:00:58]} 4... dxc3 {[%clk 0:00:55.2]} 5. Nxc3 {[%clk 0:00:57.7]} 5... Nf6 {[%clk 0:00:54.7]} 6. Nf3 {[%clk 0:00:57.4]} 6... Be7 {[%clk 0:00:54.3]} 7. O-O {[%clk 0:00:57.1]} 7... O-O {[%clk 0:00:54]} 8. Bg5 {[%clk 0:00:56.8]} 8... Bg4 {[%clk 0:00:53.4]} 9. e5 {[%clk 0:00:56.1]} 9... dxe5 {[%clk 0:00:52.2]} 10. Bxf6 {[%clk 0:00:55.1]} 10... Bxf6 {[%clk 0:00:50.4]} 11. Be2 {[%clk 0:00:54.7]} 11... Qxd1 {[%clk 0:00:47.8]} 12. Raxd1 {[%clk 0:00:51.6]} 12... Bxf3 {[%clk 0:00:46.9]} 13. Bxf3 {[%clk 0:00:51.1]} 13... c6 {[%clk 0:00:46.4]} 14. Ne4 {[%clk 0:00:50.8]} 14... Be7 {[%clk 0:00:44]} 15. Rfe1 {[%clk 0:00:50.5]} 15... Na6 {[%clk 0:00:43.2]} 16. Re3 {[%clk 0:00:50.2]} 16... Nb4 {[%clk 0:00:42.6]} 17. Be2 {[%clk 0:00:49.9]} 17... Nd5 {[%clk 0:00:41.7]} 18. Rg3 {[%clk 0:00:48.8]} 18... f5 {[%clk 0:00:40.9]} 19. Bc4 {[%clk 0:00:48.3]} 19... fxe4 {[%clk 0:00:39.3]} 20. Rg5 {[%clk 0:00:43.3]} 20... Bxg5 {[%clk 0:00:38.1]} 21. Bxd5+ {[%clk 0:00:42.3]} 21... cxd5 {[%clk 0:00:36.6]} 22. Rxd5 {[%clk 0:00:42.1]} 22... Bf6 {[%clk 0:00:34.4]} 23. g3 {[%clk 0:00:38.4]} 23... b6 {[%clk 0:00:33.5]} 24. h4 {[%clk 0:00:38]} 24... Rad8 {[%clk 0:00:27.2]} 25. Rb5 {[%clk 0:00:34]} 25... Rd2 {[%clk 0:00:25.7]} 26. Kg2 {[%clk 0:00:33.7]} 26... Rc2 {[%clk 0:00:24.5]} 27. Rb4 {[%clk 0:00:32.1]} 27... Rd8 {[%clk 0:00:23.6]} 28. Rxe4 {[%clk 0:00:31.1]} 28... Rdd2 {[%clk 0:00:22.5]} 29. Kh3 {[%clk 0:00:23.9]} 29... Rxf2 {[%clk 0:00:21.9]} 30. Rb4 {[%clk 0:00:23.1]} 30... Rxb2 {[%clk 0:00:21.2]} 31. Rc4 {[%clk 0:00:21.4]} 31... Rxa2 {[%clk 0:00:19.8]} 32. Rc8+ {[%clk 0:00:21]} 32... Kf7 {[%clk 0:00:18.5]} 33. Rc7+ {[%clk 0:00:20.7]} 33... Be7 {[%clk 0:00:17.8]} 34. g4 {[%clk 0:00:17.3]} 34... Rh2+ {[%clk 0:00:17.1]} 35. Kg3 {[%clk 0:00:16.4]} 35... Rag2+ {[%clk 0:00:16.7]} 36. Kf3 {[%clk 0:00:15.6]} 36... Rf2+ {[%clk 0:00:16.3]} 37. Ke4 {[%clk 0:00:14.8]} 37... Rhg2 {[%clk 0:00:16]} 38. Kxe5 {[%clk 0:00:14]} 38... Re2+ {[%clk 0:00:15.6]} 39. Kd5 {[%clk 0:00:13.2]} 39... Rd2+ {[%clk 0:00:14.9]} 40. Ke4 {[%clk 0:00:12.9]} 40... Rge2+ {[%clk 0:00:14.1]} 41. Kf4 {[%clk 0:00:12.5]} 41... Kf8 {[%clk 0:00:12.8]} 42. Kf5 {[%clk 0:00:11.3]} 42... Kf7 {[%clk 0:00:12.7]} 43. Kf4 {[%clk 0:00:10.2]} 43... Rf2+ {[%clk 0:00:12.6]} 44. Ke3 {[%clk 0:00:09.3]} 44... Rde2+ {[%clk 0:00:12.5]} 45. Kd4 {[%clk 0:00:08]} 45... Rc2 {[%clk 0:00:12.1]} 46. Ke3 {[%clk 0:00:07.1]} 46... Rxc7 {[%clk 0:00:11.2]} 47. Kxf2 {[%clk 0:00:05.6]} 47... Rd7 {[%clk 0:00:11.1]} 48. g5 {[%clk 0:00:04.3]} 48... h6 {[%clk 0:00:11]} 49. Kf3 {[%clk 0:00:02.7]} 49... hxg5 {[%clk 0:00:09.9]} 50. Kg4 {[%clk 0:00:02.4]} 50... gxh4 {[%clk 0:00:08.9]} 51. Kh3 {[%clk 0:00:02.1]} 51... g5 {[%clk 0:00:08.8]} 52. Kg4 {[%clk 0:00:01]} 52... b5 {[%clk 0:00:08.7]} 53. Kh5 {[%clk 0:00:00.6]} 53... b4 {[%clk 0:00:08.6]} 54. Kh6 {[%clk 0:00:00.3]} 54... b3 {[%clk 0:00:08.5]} 55. Kh7 {[%clk 0:00:00.1]} 55... b2 {[%clk 0:00:08.4]} 0-1